[Event "15e Open International de Quenza"]
[Site "Quenza"]
[Date "2026.07.05"]
[Round "6.17"]
[White "UTRERA, Ludovic"]
[Black "BOUCHET ZINCK, Leo"]
[Result "1-0"]
[TimeControl "5min+3s"]
[WhiteTitle "-"]
[BlackTitle "-"]
[WhiteFideId "-"]
[BlackFideId "-"]
[WhiteElo "2067"]
[BlackElo "1742"]

1. e4 {[%clk 00:05:03]} e5 {[%clk 00:05:03]} {[%emt 00:00:02]} 2. Nf3 {[%clk
00:05:03]} Nc6 {[%clk 00:05:03]} {[%emt 00:00:01]} 3. Bc4 {[%clk 00:05:03]}
{[%emt 00:00:01]} Bc5 {[%clk 00:05:03]} 4. c3 {[%clk 00:05:03]} Nf6 {[%clk
00:05:03]} 5. d4 {[%clk 00:05:03]} {[%emt 00:00:03]} exd4 {[%clk 00:05:03]} 6.
e5 {[%clk 00:05:03]} Ng8 {[%clk 00:05:03]} {[%emt 00:00:03]} 7. cxd4 {[%clk
00:05:03]} {[%emt 00:00:02]} Bb4+ {[%clk 00:05:03]} {[%emt 00:00:01]} 8. Nc3
{[%clk 00:05:03]} {[%emt 00:00:01]} d6 {[%clk 00:05:03]} 9. O-O {[%clk
00:04:50]} {[%emt 00:00:16]} dxe5 {[%clk 00:04:59]} {[%emt 00:00:08]} 10. d5
{[%clk 00:04:50]} {[%emt 00:00:03]} Nce7 {[%clk 00:04:55]} {[%emt 00:00:07]} 11.
Qa4+ {[%clk 00:04:48]} {[%emt 00:00:04]} c6 {[%clk 00:04:34]} {[%emt 00:00:24]}
12. Qxb4 {[%clk 00:04:48]} {[%emt 00:00:03]} cxd5 {[%clk 00:04:33]} {[%emt
00:00:04]} 13. Nxd5 {[%clk 00:04:33]} {[%emt 00:00:18]} Nc6 {[%clk 00:04:31]}
{[%emt 00:00:06]} 14. Qc3 {[%clk 00:04:29]} {[%emt 00:00:07]} Qd6 {[%clk
00:04:20]} {[%emt 00:00:14]} 15. Re1 {[%clk 00:04:23]} {[%emt 00:00:10]} f6
{[%clk 00:04:18]} {[%emt 00:00:05]} 16. Be3 {[%clk 00:03:58]} {[%emt 00:00:27]}
Nge7 {[%clk 00:04:16]} {[%emt 00:00:05]} 17. Rad1 {[%clk 00:03:54]} {[%emt
00:00:07]} Nxd5 {[%clk 00:03:54]} {[%emt 00:00:25]} 18. Bxd5 {[%clk 00:03:52]}
{[%emt 00:00:05]} Qc7 {[%clk 00:03:48]} {[%emt 00:00:09]} 19. Bc5 {[%clk
00:03:24]} {[%emt 00:00:32]} Bd7 {[%clk 00:03:37]} {[%emt 00:00:14]} 20. Bd6
{[%clk 00:03:21]} {[%emt 00:00:05]} Qb6 {[%clk 00:03:34]} {[%emt 00:00:07]} 21.
Qb3 {[%clk 00:03:12]} {[%emt 00:00:12]} Ne7 {[%clk 00:03:12]} {[%emt 00:00:25]}
22. Bf7+ {[%clk 00:03:07]} {[%emt 00:00:07]} Kf8 {[%clk 00:02:59]} {[%emt
00:00:16]} 23. Ba3 {[%clk 00:02:53]} {[%emt 00:00:17]} Be8 {[%clk 00:02:54]}
{[%emt 00:00:08]} 24. Bc4 {[%clk 00:02:49]} {[%emt 00:00:07]} Rc8 {[%clk
00:02:39]} {[%emt 00:00:18]} 25. Nd4 {[%clk 00:02:47]} {[%emt 00:00:05]} Bd7
{[%clk 00:02:18]} {[%emt 00:00:24]} 26. Be6 {[%clk 00:02:27]} {[%emt 00:00:23]}
Rc7 {[%clk 00:01:54]} {[%emt 00:00:27]} 27. Bxd7 {[%clk 00:02:27]} {[%emt
00:00:02]} Rxd7 {[%clk 00:01:54]} {[%emt 00:00:03]} 28. Ne6+ {[%clk 00:02:27]}
{[%emt 00:00:03]} Ke8 {[%clk 00:01:47]} {[%emt 00:00:09]} 29. Nxg7+ {[%clk
00:02:23]} {[%emt 00:00:08]} Kd8 {[%clk 00:01:43]} {[%emt 00:00:07]} 30. Rxd7+
{[%clk 00:02:23]} {[%emt 00:00:04]} Kxd7 {[%clk 00:01:43]} {[%emt 00:00:01]} 31.
Rd1+ {[%clk 00:02:23]} {[%emt 00:00:01]} 1-0

[Event "15e Open International de Quenza"]
[Site "Quenza"]
[Date "2026.07.05"]
[Round "6.5"]
[White "BATSIASHVILI, Nino"]
[Black "MAZE, Sebastien"]
[Result "1/2-1/2"]
[TimeControl "5min+3s"]
[WhiteTitle "GM"]
[BlackTitle "GM"]
[WhiteFideId "-"]
[BlackFideId "-"]
[WhiteElo "2306"]
[BlackElo "2455"]

1. d4 {[%clk 00:05:03]} Nf6 {[%clk 00:05:03]} 2. c4 {[%clk 00:05:03]} {[%emt
00:00:02]} g6 {[%clk 00:05:03]} 3. Nc3 {[%clk 00:05:03]} Bg7 {[%clk 00:05:03]}
4. e4 {[%clk 00:05:03]} {[%emt 00:00:07]} d6 {[%clk 00:05:03]} {[%emt
00:00:01]} 5. Be2 {[%clk 00:05:03]} Nbd7 {[%clk 00:05:03]} {[%emt 00:00:01]} 6.
h3 {[%clk 00:04:57]} {[%emt 00:00:09]} e5 {[%clk 00:05:03]} {[%emt 00:00:01]} 7.
d5 {[%clk 00:04:57]} {[%emt 00:00:01]} h5 {[%clk 00:05:03]} {[%emt 00:00:01]} 8.
Nf3 {[%clk 00:04:51]} {[%emt 00:00:09]} Bh6 {[%clk 00:05:03]} {[%emt 00:00:01]}
9. Bxh6 {[%clk 00:04:15]} {[%emt 00:00:39]} Rxh6 {[%clk 00:05:03]} {[%emt
00:00:01]} 10. b4 {[%clk 00:04:11]} {[%emt 00:00:06]} a5 {[%clk 00:04:54]}
{[%emt 00:00:12]} 11. a3 {[%clk 00:04:11]} {[%emt 00:00:01]} h4 {[%clk
00:04:48]} {[%emt 00:00:09]} 12. Nd2 {[%clk 00:03:27]} {[%emt 00:00:47]} Rh8
{[%clk 00:04:42]} {[%emt 00:00:09]} 13. O-O {[%clk 00:03:26]} {[%emt 00:00:04]}
Kf8 {[%clk 00:04:42]} {[%emt 00:00:02]} 14. Nb3 {[%clk 00:03:23]} {[%emt
00:00:06]} axb4 {[%clk 00:04:35]} {[%emt 00:00:10]} 15. axb4 {[%clk 00:03:23]}
{[%emt 00:00:01]} Rxa1 16. Qxa1 {[%clk 00:03:23]} Kg7 {[%clk 00:04:30]} {[%emt
00:00:01]} 17. c5 {[%clk 00:03:23]} {[%emt 00:00:03]} Nf8 {[%clk 00:04:10]}
{[%emt 00:00:23]} 18. Qa5 {[%clk 00:03:18]} {[%emt 00:00:08]} b6 {[%clk
00:03:30]} {[%emt 00:00:42]} 19. Qa7 {[%clk 00:03:09]} {[%emt 00:00:12]} N8h7
{[%clk 00:03:22]} {[%emt 00:00:12]} 20. Nb5 {[%clk 00:03:01]} {[%emt 00:00:12]}
bxc5 {[%clk 00:03:14]} {[%emt 00:00:11]} 21. bxc5 {[%clk 00:02:58]} {[%emt
00:00:06]} Nxe4 {[%clk 00:03:08]} {[%emt 00:00:09]} 22. Nxc7 {[%clk 00:02:48]}
{[%emt 00:00:13]} Nhg5 {[%clk 00:02:41]} {[%emt 00:00:30]} 23. Bd3 {[%clk
00:02:02]} {[%emt 00:00:48]} Qf6 {[%clk 00:01:30]} {[%emt 00:01:14]} 24. Bxe4
{[%clk 00:01:58]} {[%emt 00:00:07]} Nxe4 {[%clk 00:01:30]} {[%emt 00:00:01]} 25.
cxd6 {[%clk 00:01:58]} {[%emt 00:00:03]} Nxd6 {[%clk 00:01:10]} {[%emt
00:00:23]} 26. Nc5 {[%clk 00:01:58]} {[%emt 00:00:03]} Kh6 {[%clk 00:01:10]}
{[%emt 00:00:01]} 27. Qb6 {[%clk 00:01:37]} {[%emt 00:00:24]} Qg5 {[%clk
00:00:42]} {[%emt 00:00:30]} 28. N5e6 {[%clk 00:01:18]} {[%emt 00:00:22]} fxe6
{[%clk 00:00:38]} {[%emt 00:00:07]} 29. Qxd6 {[%clk 00:01:12]} {[%emt
00:00:09]} exd5 {[%clk 00:00:38]} {[%emt 00:00:02]} 30. Qxd5 {[%clk 00:01:06]}
{[%emt 00:00:09]} Bxh3 {[%clk 00:00:37]} {[%emt 00:00:04]} 31. Ne6 {[%clk
00:00:47]} {[%emt 00:00:21]} Bxe6 {[%clk 00:00:37]} {[%emt 00:00:02]} 32. Qxe6
{[%clk 00:00:47]} {[%emt 00:00:01]} Rf8 {[%clk 00:00:33]} {[%emt 00:00:07]} 33.
Qh3 {[%clk 00:00:45]} {[%emt 00:00:05]} Rf4 {[%clk 00:00:26]} {[%emt 00:00:10]}
34. Re1 {[%clk 00:00:43]} {[%emt 00:00:05]} Qf5 {[%clk 00:00:15]} {[%emt
00:00:15]} 35. Qe3 {[%clk 00:00:37]} {[%emt 00:00:09]} Qg5 {[%clk 00:00:07]}
{[%emt 00:00:11]} 36. Qxe5 {[%clk 00:00:33]} {[%emt 00:00:07]} Qxe5 {[%clk
00:00:07]} 37. Rxe5 {[%clk 00:00:33]} {[%emt 00:00:01]} g5 {[%clk 00:00:07]} 38.
f3 {[%clk 00:00:33]} {[%emt 00:00:01]} Rf6 39. Rd5 {[%clk 00:00:33]} Rf4 40.
Re5 {[%clk 00:00:33]} Rf6 41. Rd5 {[%clk 00:00:33]} Rf4 1/2-1/2

[Event "15e Open International de Quenza"]
[Site "Quenza"]
[Date "2026.07.05"]
[Round "6.15"]
[White "DE SEROUX, Camille"]
[Black "TANNOUS BONELLI, Maxime"]
[Result "1-0"]
[TimeControl "5min+3s"]
[WhiteTitle "WIM"]
[BlackTitle "-"]
[WhiteFideId "-"]
[BlackFideId "-"]
[WhiteElo "2076"]
[BlackElo "1802"]

1. e4 {[%clk 00:05:03]} e5 {[%clk 00:05:03]} {[%emt 00:00:02]} 2. Nc3 {[%clk
00:05:03]} {[%emt 00:00:03]} Nc6 {[%clk 00:05:03]} 3. Nf3 {[%clk 00:05:03]}
{[%emt 00:00:02]} Nf6 {[%clk 00:05:03]} 4. Bb5 {[%clk 00:05:03]} {[%emt
00:00:02]} d6 {[%clk 00:04:58]} {[%emt 00:00:08]} 5. d4 {[%clk 00:05:01]}
{[%emt 00:00:06]} exd4 {[%clk 00:04:58]} {[%emt 00:00:02]} 6. Nxd4 {[%clk
00:05:01]} {[%emt 00:00:02]} Bd7 {[%clk 00:04:58]} {[%emt 00:00:01]} 7. Bxc6
{[%clk 00:04:55]} {[%emt 00:00:09]} Bxc6 {[%clk 00:04:58]} {[%emt 00:00:02]} 8.
O-O {[%clk 00:04:49]} {[%emt 00:00:09]} Be7 {[%clk 00:04:58]} {[%emt 00:00:04]}
9. Nxc6 {[%clk 00:04:31]} {[%emt 00:00:20]} bxc6 {[%clk 00:04:58]} {[%emt
00:00:03]} 10. f4 {[%clk 00:04:31]} {[%emt 00:00:02]} O-O {[%clk 00:04:54]}
{[%emt 00:00:07]} 11. Qf3 {[%clk 00:04:28]} {[%emt 00:00:06]} Qd7 {[%clk
00:04:30]} {[%emt 00:00:28]} 12. b3 {[%clk 00:04:22]} {[%emt 00:00:08]} Qg4
{[%clk 00:04:13]} {[%emt 00:00:19]} 13. Qd3 {[%clk 00:04:14]} {[%emt 00:00:12]}
Qd7 {[%clk 00:03:52]} {[%emt 00:00:24]} 14. Bb2 {[%clk 00:04:11]} {[%emt
00:00:05]} Rfe8 {[%clk 00:03:24]} {[%emt 00:00:30]} 15. Rad1 {[%clk 00:04:06]}
{[%emt 00:00:08]} Rad8 {[%clk 00:03:24]} {[%emt 00:00:03]} 16. Qa6 {[%clk
00:03:46]} {[%emt 00:00:23]} d5 {[%clk 00:02:09]} {[%emt 00:01:19]} 17. e5
{[%clk 00:03:34]} {[%emt 00:00:15]} Bc5+ {[%clk 00:02:07]} {[%emt 00:00:05]} 18.
Kh1 {[%clk 00:03:31]} {[%emt 00:00:06]} Ng4 {[%clk 00:02:04]} {[%emt 00:00:06]}
19. Rd2 {[%clk 00:03:05]} {[%emt 00:00:29]} Ne3 {[%clk 00:01:46]} {[%emt
00:00:20]} 20. Rf3 {[%clk 00:02:45]} {[%emt 00:00:23]} Qg4 {[%clk 00:01:04]}
{[%emt 00:00:45]} 21. Rg3 {[%clk 00:02:21]} {[%emt 00:00:28]} Qxf4 {[%clk
00:00:56]} {[%emt 00:00:10]} 22. Na4 {[%clk 00:01:32]} {[%emt 00:00:53]} Bb6
{[%clk 00:00:17]} {[%emt 00:00:42]} 23. Nxb6 {[%clk 00:01:24]} {[%emt
00:00:11]} cxb6 {[%clk 00:00:17]} {[%emt 00:00:01]} 24. e6 {[%clk 00:01:24]}
{[%emt 00:00:03]} f6 {[%clk 00:00:09]} {[%emt 00:00:11]} 25. Qd3 {[%clk
00:01:14]} {[%emt 00:00:14]} Nf1 {[%clk 00:00:07]} {[%emt 00:00:05]} 26. Rh3
{[%clk 00:01:00]} {[%emt 00:00:17]} h6 {[%clk 00:00:06]} {[%emt 00:00:04]} 27.
Re2 {[%clk 00:00:53]} {[%emt 00:00:11]} Rd6 {[%clk 00:00:06]} {[%emt 00:00:02]}
28. e7 {[%clk 00:00:47]} {[%emt 00:00:09]} Rd7 {[%emt 00:00:06]} 1-0

[Event "15e Open International de Quenza"]
[Site "Quenza"]
[Date "2026.07.05"]
[Round "6.12"]
[White "TOMASI, Albert"]
[Black "FRESSINET, Laurent"]
[Result "1-0"]
[TimeControl "5min+3s"]
[WhiteTitle "FM"]
[BlackTitle "GM"]
[WhiteFideId "-"]
[BlackFideId "-"]
[WhiteElo "2235"]
[BlackElo "2565"]

1. e4 {[%emt 00:10:08]} e5 {[%emt 00:00:01]} 2. Nf3 {[%emt 00:00:02]} Nc6
{[%emt 00:00:02]} 3. Bb5 {[%emt 00:00:02]} a6 4. Ba4 {[%emt 00:00:01]} Nf6
{[%emt 00:00:02]} 5. O-O {[%emt 00:00:02]} Be7 {[%emt 00:00:01]} 6. Re1 {[%emt
00:00:02]} b5 {[%emt 00:00:01]} 7. Bb3 {[%emt 00:00:02]} O-O {[%emt 00:00:02]}
8. d3 {[%emt 00:00:02]} d6 {[%emt 00:00:17]} 9. c3 {[%emt 00:00:01]} Na5 {[%emt
00:00:02]} 10. Bc2 {[%emt 00:00:01]} c5 {[%emt 00:00:02]} 11. Nbd2 {[%emt
00:00:02]} Nc6 {[%emt 00:00:03]} 12. Nf1 {[%emt 00:00:02]} Re8 {[%emt
00:00:02]} 13. h3 {[%emt 00:00:02]} h6 {[%emt 00:00:03]} 14. Ng3 {[%emt
00:00:02]} Be6 {[%emt 00:00:02]} 15. d4 {[%emt 00:00:03]} cxd4 {[%emt
00:00:07]} 16. cxd4 exd4 {[%emt 00:00:04]} 17. Nxd4 {[%emt 00:00:02]} Nxd4
{[%emt 00:00:01]} 18. Qxd4 {[%emt 00:00:01]} Rc8 {[%emt 00:00:02]} 19. Bb3
{[%emt 00:00:02]} d5 {[%emt 00:00:32]} 20. e5 {[%emt 00:00:03]} Nd7 {[%emt
00:00:15]} 21. Bd2 {[%emt 00:01:01]} Qb6 {[%emt 00:00:33]} 22. Qxb6 {[%emt
00:00:25]} Nxb6 {[%emt 00:00:01]} 23. Rad1 {[%emt 00:00:28]} Nc4 {[%emt
00:00:05]} 24. Bc3 {[%emt 00:00:01]} b4 {[%emt 00:00:31]} 25. Bd4 {[%emt
00:00:02]} Bc5 26. Re2 {[%emt 00:00:11]} a5 {[%emt 00:00:14]} 27. f4 {[%emt
00:00:05]} g6 {[%emt 00:00:17]} 28. Kh2 {[%emt 00:00:36]} Bxd4 {[%emt
00:00:15]} 29. Rxd4 {[%emt 00:00:02]} Rc5 30. Rf2 {[%emt 00:01:23]} Kf8 {[%emt
00:01:18]} 31. Bd1 {[%emt 00:00:49]} Ne3 {[%emt 00:00:05]} 32. Bf3 {[%emt
00:00:03]} Rec8 {[%emt 00:00:41]} 33. Nf1 {[%emt 00:00:02]} Nxf1+ 34. Rxf1 Rc4
35. Rfd1 {[%emt 00:00:03]} Rxd4 {[%emt 00:00:02]} 36. Rxd4 Rc4 37. Rd2 {[%emt
00:00:09]} Rc5 {[%emt 00:00:12]} 38. g4 {[%emt 00:00:05]} a4 {[%emt 00:00:03]}
39. Kg3 {[%emt 00:00:03]} a3 {[%emt 00:00:05]} 40. bxa3 {[%emt 00:00:05]} bxa3
41. Rd3 {[%emt 00:00:04]} Ra5 42. Bd1 {[%emt 00:00:02]} Ke7 {[%emt 00:00:14]}
43. Bb3 {[%emt 00:00:01]} Rc5 44. Kf3 {[%emt 00:00:02]} Rc1 {[%emt 00:00:04]}
45. Ke3 {[%emt 00:00:04]} Re1+ {[%emt 00:00:02]} 46. Kf2 {[%emt 00:00:06]} Rh1
{[%emt 00:00:02]} 47. Kg2 {[%emt 00:00:09]} Rb1 {[%emt 00:00:01]} 48. Rd4
{[%emt 00:00:03]} h5 {[%emt 00:00:05]} 49. f5 {[%emt 00:00:05]} gxf5 {[%emt
00:00:03]} 50. gxh5 Kf8 {[%emt 00:00:02]} 51. Ra4 Kg7 52. Rxa3 {[%emt
00:00:02]} Kh6 53. Ra5 {[%emt 00:00:01]} Kxh5 {[%emt 00:00:04]} 54. Bxd5 {[%emt
00:00:02]} Kg5 {[%emt 00:00:03]} 55. Bxe6 {[%emt 00:00:03]} fxe6 56. Ra6 Kf4 57.
Rxe6 {[%emt 00:00:02]} Rb2+ 58. Kg1 {[%emt 00:00:01]} Rxa2 {[%emt 00:00:02]} 59.
Re8 {[%emt 00:00:01]} Ra1+ {[%emt 00:00:03]} 60. Kg2 Ra2+ 61. Kg1 Ra1+ {[%emt
00:00:01]} 62. Kg2 Ra2+ {[%emt 00:00:01]} 63. Kf1 {[%emt 00:00:02]} Kf3 {[%emt
00:00:02]} 64. Ke1 f4 {[%emt 00:00:02]} 65. e6 {[%emt 00:00:01]} Re2+ {[%emt
00:00:03]} 66. Kd1 Re5 67. e7 {[%emt 00:00:02]} Kf2 68. Kd2 {[%emt 00:00:03]}
f3 69. h4 {[%emt 00:00:03]} Kf1 {[%emt 00:00:02]} 70. h5 f2 {[%emt 00:00:03]}
71. h6 {[%emt 00:00:01]} Rd5+ 72. Kc2 {[%emt 00:00:04]} Ke2 73. Rd8 Rc5+ {[%emt
00:00:01]} 74. Kb3 {[%emt 00:00:03]} f1=Q 75. e8=Q+ Kf2 76. Qf8+ {[%emt
00:00:02]} Kg2 77. Qxc5 {[%emt 00:00:02]} Qf3+ {[%emt 00:00:01]} 78. Kb4 {[%emt
00:00:02]} Qb7+ 79. Qb5 {[%emt 00:00:02]} Qe4+ 80. Ka5 {[%emt 00:00:01]} Qe7
{[%emt 00:00:03]} 81. Qc6+ {[%emt 00:00:01]} Kh2 {[%emt 00:00:02]} 82. Qd6+
{[%emt 00:00:02]} 1-0

[Event "15e Open International de Quenza"]
[Site "Quenza"]
[Date "2026.07.05"]
[Round "6.1"]
[White "LAGARDE, Maxime"]
[Black "KOELLE, Tobias"]
[Result "1-0"]
[TimeControl "5min+3s"]
[WhiteTitle "GM"]
[BlackTitle "IM"]
[WhiteFideId "-"]
[BlackFideId "-"]
[WhiteElo "2583"]
[BlackElo "2613"]

1. e4 {[%clk 00:05:03]} {[%emt 00:05:02]} c5 {[%clk 00:05:03]} {[%emt
00:00:01]} 2. Nc3 {[%clk 00:05:03]} Nc6 {[%clk 00:05:03]} {[%emt 00:00:02]} 3.
Nf3 {[%clk 00:05:03]} {[%emt 00:00:01]} e5 {[%clk 00:05:03]} {[%emt 00:00:03]}
4. Bc4 {[%clk 00:05:03]} {[%emt 00:00:01]} Be7 {[%clk 00:05:02]} {[%emt
00:00:04]} 5. d3 {[%clk 00:05:03]} {[%emt 00:00:01]} d6 {[%clk 00:05:02]} 6. a4
{[%clk 00:05:00]} {[%emt 00:00:06]} Nf6 {[%clk 00:05:02]} {[%emt 00:00:01]} 7.
Bg5 {[%clk 00:05:00]} {[%emt 00:00:01]} h6 {[%clk 00:05:02]} {[%emt 00:00:02]}
8. Bxf6 {[%clk 00:05:00]} Bxf6 {[%clk 00:05:02]} {[%emt 00:00:01]} 9. Nd5
{[%clk 00:05:00]} g6 {[%clk 00:05:02]} {[%emt 00:00:03]} 10. c3 {[%clk
00:04:58]} {[%emt 00:00:05]} Bg7 {[%clk 00:05:02]} {[%emt 00:00:01]} 11. h4
{[%clk 00:04:58]} {[%emt 00:00:04]} Be6 {[%clk 00:04:57]} {[%emt 00:00:09]} 12.
h5 {[%clk 00:04:58]} {[%emt 00:00:03]} g5 {[%clk 00:04:48]} {[%emt 00:00:12]}
13. Nh2 {[%clk 00:04:51]} {[%emt 00:00:09]} Ne7 {[%clk 00:04:46]} {[%emt
00:00:05]} 14. Nxe7 {[%clk 00:04:39]} {[%emt 00:00:15]} Qxe7 {[%clk 00:04:46]}
{[%emt 00:00:01]} 15. Ng4 {[%clk 00:04:39]} {[%emt 00:00:03]} f5 {[%clk
00:04:26]} {[%emt 00:00:23]} 16. Bxe6 {[%clk 00:04:34]} {[%emt 00:00:08]} Qxe6
{[%clk 00:04:26]} {[%emt 00:00:02]} 17. Ne3 {[%clk 00:04:34]} f4 {[%clk
00:04:20]} {[%emt 00:00:09]} 18. Nf5 {[%clk 00:04:05]} {[%emt 00:00:32]} O-O
{[%clk 00:04:15]} {[%emt 00:00:08]} 19. c4 {[%clk 00:04:02]} {[%emt 00:00:07]}
Kh7 {[%clk 00:04:03]} {[%emt 00:00:15]} 20. O-O {[%clk 00:03:51]} {[%emt
00:00:14]} Bf6 {[%clk 00:04:03]} {[%emt 00:00:01]} 21. g4 {[%clk 00:03:44]}
{[%emt 00:00:10]} a5 {[%clk 00:04:02]} {[%emt 00:00:04]} 22. Qb3 {[%clk
00:03:43]} {[%emt 00:00:04]} Qd7 {[%clk 00:03:52]} {[%emt 00:00:13]} 23. Qc2
{[%clk 00:03:28]} {[%emt 00:00:19]} Rfc8 {[%clk 00:03:36]} {[%emt 00:00:19]} 24.
Ra3 {[%clk 00:03:28]} {[%emt 00:00:02]} Bd8 {[%clk 00:03:32]} {[%emt 00:00:06]}
25. Rb3 {[%clk 00:03:27]} {[%emt 00:00:04]} b6 {[%clk 00:03:32]} {[%emt
00:00:01]} 26. Rb5 {[%clk 00:03:25]} {[%emt 00:00:06]} Rc6 {[%clk 00:03:29]}
{[%emt 00:00:05]} 27. Kg2 {[%clk 00:03:22]} {[%emt 00:00:07]} Qe6 {[%clk
00:03:29]} {[%emt 00:00:03]} 28. Ra1 {[%clk 00:03:20]} {[%emt 00:00:05]} Rac8
{[%clk 00:03:29]} {[%emt 00:00:02]} 29. Kf3 {[%clk 00:03:20]} {[%emt 00:00:04]}
Kg8 {[%clk 00:03:27]} {[%emt 00:00:04]} 30. Ra3 {[%clk 00:03:20]} {[%emt
00:00:03]} Kh7 {[%clk 00:03:25]} {[%emt 00:00:05]} 31. Rab3 {[%clk 00:03:20]}
{[%emt 00:00:01]} Kg8 {[%clk 00:03:25]} {[%emt 00:00:02]} 32. Kg2 {[%clk
00:03:20]} {[%emt 00:00:01]} Kh7 {[%clk 00:03:25]} {[%emt 00:00:01]} 33. Qe2
{[%clk 00:03:20]} Kg8 {[%clk 00:03:25]} {[%emt 00:00:03]} 34. Qf3 {[%clk
00:03:20]} {[%emt 00:00:01]} Kh7 {[%clk 00:03:23]} {[%emt 00:00:04]} 35. Rc3
{[%clk 00:03:20]} {[%emt 00:00:01]} Kg8 {[%clk 00:03:23]} {[%emt 00:00:02]} 36.
Rc1 {[%clk 00:03:20]} Kh7 {[%clk 00:03:21]} {[%emt 00:00:04]} 37. Qd1 {[%clk
00:03:20]} {[%emt 00:00:03]} Qd7 {[%clk 00:03:18]} {[%emt 00:00:06]} 38. Rb3
{[%clk 00:03:04]} {[%emt 00:00:18]} Ra8 {[%clk 00:03:09]} {[%emt 00:00:13]} 39.
Ra3 {[%clk 00:03:02]} {[%emt 00:00:05]} Rcc8 {[%clk 00:03:09]} {[%emt
00:00:02]} 40. Raa1 {[%clk 00:03:02]} {[%emt 00:00:02]} Bc7 {[%clk 00:03:09]}
{[%emt 00:00:02]} 41. Qb3 {[%clk 00:03:02]} Rf8 {[%clk 00:03:08]} {[%emt
00:00:03]} 42. Kf3 {[%clk 00:03:02]} {[%emt 00:00:03]} Rf7 {[%clk 00:03:08]}
{[%emt 00:00:03]} 43. Qb5 {[%clk 00:03:01]} {[%emt 00:00:05]} Ra7 {[%clk
00:02:59]} {[%emt 00:00:13]} 44. Ke2 {[%clk 00:02:57]} {[%emt 00:00:07]} Bd8
{[%clk 00:02:59]} {[%emt 00:00:01]} 45. f3 {[%clk 00:02:50]} {[%emt 00:00:09]}
Bc7 {[%clk 00:02:59]} {[%emt 00:00:01]} 46. Ra3 {[%clk 00:02:50]} {[%emt
00:00:02]} Bd8 {[%clk 00:02:59]} 47. Rb3 {[%clk 00:02:50]} {[%emt 00:00:02]}
Bc7 {[%clk 00:02:59]} 48. Rbc3 {[%clk 00:02:45]} {[%emt 00:00:08]} Bd8 {[%clk
00:02:59]} 49. Kf1 {[%clk 00:02:45]} {[%emt 00:00:01]} Bc7 {[%clk 00:02:59]}
{[%emt 00:00:01]} 50. Qb3 {[%clk 00:02:45]} {[%emt 00:00:02]} Bd8 {[%clk
00:02:59]} 51. Qa2 {[%clk 00:02:45]} Bc7 {[%clk 00:02:59]} {[%emt 00:00:02]} 52.
Rb3 {[%clk 00:02:45]} Bd8 {[%clk 00:02:59]} 53. Rb5 {[%clk 00:02:45]} Qc6
{[%clk 00:02:51]} {[%emt 00:00:10]} 54. Qb1 {[%clk 00:02:45]} {[%emt 00:00:02]}
Ra6 {[%clk 00:02:50]} {[%emt 00:00:03]} 55. Rc3 {[%clk 00:02:44]} {[%emt
00:00:05]} Qd7 {[%clk 00:02:50]} {[%emt 00:00:02]} 56. Rcb3 {[%clk 00:02:44]}
{[%emt 00:00:02]} Bc7 {[%clk 00:02:50]} {[%emt 00:00:03]} 57. Ke2 {[%clk
00:02:44]} {[%emt 00:00:03]} Qe6 {[%clk 00:02:50]} {[%emt 00:00:03]} 58. Qc2
{[%clk 00:02:44]} {[%emt 00:00:02]} Kg8 {[%clk 00:02:41]} {[%emt 00:00:12]} 59.
Kf2 {[%clk 00:02:43]} {[%emt 00:00:04]} Rf6 {[%clk 00:02:40]} {[%emt 00:00:04]}
60. Kg2 {[%clk 00:02:42]} {[%emt 00:00:05]} Bd8 {[%clk 00:02:40]} {[%emt
00:00:03]} 61. Ra3 {[%clk 00:02:42]} {[%emt 00:00:01]} Bc7 {[%clk 00:02:40]} 62.
Ra1 {[%clk 00:02:42]} Bd8 {[%clk 00:02:40]} 63. Re1 {[%clk 00:02:42]} Bc7
{[%clk 00:02:37]} {[%emt 00:00:06]} 64. d4 {[%clk 00:02:32]} {[%emt 00:00:12]}
cxd4 {[%clk 00:02:31]} {[%emt 00:00:08]} 65. Rd5 {[%emt 00:00:12]} Ra8 {[%clk
00:02:24]} 66. Ra1 {[%clk 00:02:32]} {[%emt 00:00:06]} Qe8 {[%clk 00:02:15]}
{[%emt 00:00:10]} 67. Ra3 {[%clk 00:02:32]} {[%emt 00:00:03]} Rd8 {[%clk
00:02:07]} {[%emt 00:00:10]} 68. Qb1 {[%clk 00:02:19]} {[%emt 00:00:16]} Re6
{[%clk 00:01:57]} {[%emt 00:00:13]} 69. b4 {[%clk 00:02:19]} {[%emt 00:00:03]}
axb4 {[%clk 00:01:57]} {[%emt 00:00:01]} 70. Qxb4 {[%clk 00:02:19]} {[%emt
00:00:01]} Qc6 {[%clk 00:01:47]} {[%emt 00:00:13]} 71. Kf2 {[%clk 00:02:13]}
{[%emt 00:00:09]} Kh7 {[%clk 00:01:47]} {[%emt 00:00:04]} 72. Ke2 {[%clk
00:02:13]} {[%emt 00:00:01]} Ra8 {[%clk 00:01:47]} 73. Kd3 {[%clk 00:02:12]}
{[%emt 00:00:04]} Rf6 {[%clk 00:01:22]} {[%emt 00:00:28]} 74. Qb5 {[%clk
00:02:02]} {[%emt 00:00:13]} Qxb5 {[%clk 00:01:22]} {[%emt 00:00:03]} 75. cxb5
{[%clk 00:02:02]} {[%emt 00:00:02]} Bb8 {[%clk 00:00:56]} {[%emt 00:00:29]} 76.
Ne7 {[%clk 00:01:59]} {[%emt 00:00:06]} Rf7 {[%clk 00:00:45]} {[%emt 00:00:14]}
77. Nc6 {[%clk 00:01:34]} {[%emt 00:00:28]} Bc7 {[%clk 00:00:43]} {[%emt
00:00:04]} 78. Kc4 {[%clk 00:01:34]} {[%emt 00:00:03]} Kg7 {[%clk 00:00:43]}
{[%emt 00:00:01]} 79. Kb4 {[%clk 00:01:34]} {[%emt 00:00:02]} Kf6 {[%clk
00:00:43]} {[%emt 00:00:02]} 80. Ra1 {[%clk 00:01:34]} {[%emt 00:00:02]} Ke6
{[%clk 00:00:43]} {[%emt 00:00:02]} 81. Rc1 {[%clk 00:01:34]} Rd7 {[%clk
00:00:37]} {[%emt 00:00:09]} 82. Kb3 {[%clk 00:01:34]} {[%emt 00:00:01]} Rf7
{[%clk 00:00:30]} {[%emt 00:00:10]} 83. Nb4 {[%clk 00:01:34]} {[%emt 00:00:02]}
Rd7 {[%clk 00:00:27]} {[%emt 00:00:05]} 84. Rc6 {[%clk 00:01:32]} {[%emt
00:00:05]} Bd8 {[%clk 00:00:27]} {[%emt 00:00:02]} 85. Nd3 {[%clk 00:01:30]}
{[%emt 00:00:05]} Ke7 {[%clk 00:00:27]} {[%emt 00:00:03]} 86. Nb2 {[%clk
00:01:30]} {[%emt 00:00:02]} Bc7 {[%clk 00:00:22]} {[%emt 00:00:08]} 87. Nc4
{[%clk 00:01:30]} {[%emt 00:00:02]} Rb8 {[%clk 00:00:22]} 88. a5 {[%clk
00:01:19]} {[%emt 00:00:14]} bxa5 {[%clk 00:00:19]} {[%emt 00:00:07]} 89. Ka4
{[%clk 00:01:19]} Rb7 {[%clk 00:00:18]} {[%emt 00:00:04]} 90. b6 {[%clk
00:01:18]} {[%emt 00:00:04]} Bb8 {[%clk 00:00:15]} {[%emt 00:00:06]} 91. Nxa5
{[%clk 00:01:17]} {[%emt 00:00:04]} Ke6 {[%clk 00:00:11]} {[%emt 00:00:07]} 92.
Kb5 {[%clk 00:01:17]} {[%emt 00:00:03]} Rh7 {[%clk 00:00:07]} {[%emt 00:00:06]}
93. Nxb7 {[%clk 00:01:12]} {[%emt 00:00:08]} Rxb7 {[%clk 00:00:07]} {[%emt
00:00:01]} 94. Ka6 {[%clk 00:01:12]} {[%emt 00:00:01]} 1-0